[Event "Swedish Chess Championship 2019: Veteran-SM 65+"]
[Site "Stiga Sports Arena, Arenatorget 1, Eskilstuna, Sweden"]
[Date "2019.07.08"]
[Round "3.1"]
[White "Bellon Lopez, Juan Manuel"]
[Black "Alquist, Erik"]
[Result "1/2-1/2"]
[TimeControl "90 minutes for 40 moves + 30 minutes for the rest of the game + 30 seconds per move from move one"]
[WhiteTitle "GM"]
[WhiteFideId "2200031"]
[BlackFideId "1707701"]
[WhiteElo "2343"]
[BlackElo "1976"]

1. c4 {[%clk 01:30:49]} {[%emt 00:00:27]} Nf6 {[%clk 01:30:52]} {[%emt
00:00:21]} 2. Nc3 {[%clk 01:31:11]} {[%emt 00:00:27]} g6 {[%clk 01:31:08]}
{[%emt 00:00:52]} 3. e4 {[%clk 01:31:17]} {[%emt 00:01:33]} d6 {[%clk
01:31:32]} {[%emt 00:00:22]} 4. d4 {[%clk 01:31:41]} {[%emt 00:00:22]} Bg7
{[%clk 01:31:55]} {[%emt 00:00:25]} 5. Bg5 {[%clk 01:31:55]} {[%emt 00:00:52]}
O-O {[%clk 01:32:02]} {[%emt 00:01:28]} 6. Qd2 {[%clk 01:32:22]} {[%emt
00:00:11]} c5 {[%clk 01:31:42]} {[%emt 00:03:05]} 7. d5 {[%clk 01:32:17]}
{[%emt 00:02:11]} a6 {[%clk 01:24:18]} {[%emt 00:28:07]} 8. a4 {[%clk
01:28:51]} {[%emt 00:09:52]} e6 {[%clk 01:23:01]} 9. Nf3 {[%clk 01:26:30]} exd5
{[%clk 01:23:13]} 10. exd5 {[%clk 01:26:56]} Re8+ {[%clk 01:21:28]} 11. Be2
{[%clk 01:27:22]} Bg4 {[%clk 01:16:32]} 12. O-O {[%clk 01:27:45]} Nbd7 {[%clk
01:15:15]} 13. Rae1 {[%clk 01:25:38]} Qb6 {[%clk 01:10:08]} 14. h3 {[%clk
01:19:21]} Bxf3 {[%clk 01:09:58]} 15. Bxf3 {[%clk 01:19:48]} Ne5 {[%clk
01:09:03]} 16. Be2 {[%clk 01:17:58]} {[%emt 00:00:06]} Qb3 {[%clk 01:03:17]}
{[%emt 00:05:04]} 17. Qc1 {[%clk 00:58:10]} {[%emt 00:20:18]} Rab8 {[%clk
00:36:23]} {[%emt 00:27:24]} 18. a5 {[%clk 00:47:44]} {[%emt 00:10:56]} b6
{[%clk 00:34:22]} {[%emt 00:02:31]} 19. axb6 {[%clk 00:47:44]} {[%emt
00:00:30]} Rxb6 {[%clk 00:34:07]} {[%emt 00:00:45]} 20. Bxf6 {[%clk 00:18:31]}
{[%emt 00:29:44]} Bxf6 {[%clk 00:34:28]} {[%emt 00:00:08]} 21. Ne4 {[%clk
00:17:23]} {[%emt 00:01:39]} Bg7 {[%clk 00:33:26]} {[%emt 00:01:31]} 22. Qf4
{[%clk 00:14:55]} {[%emt 00:02:58]} Qxb2 {[%clk 00:23:13]} {[%emt 00:10:43]} 23.
g4 {[%clk 00:15:21]} {[%emt 00:00:04]} Re7 {[%clk 00:15:50]} {[%emt 00:07:54]}
24. Kg2 {[%clk 00:13:25]} {[%emt 00:02:25]} Nd7 {[%clk 00:15:20]} {[%emt
00:01:01]} 25. Bf3 {[%clk 00:12:09]} {[%emt 00:01:46]} Qe5 {[%clk 00:14:32]}
{[%emt 00:01:18]} 26. Qc1 {[%clk 00:11:39]} {[%emt 00:00:59]} Qd4 {[%clk
00:12:51]} {[%emt 00:02:11]} 27. Rd1 {[%clk 00:11:14]} {[%emt 00:00:55]} Qb2
{[%clk 00:11:56]} {[%emt 00:01:25]} 28. Qg5 {[%clk 00:11:07]} {[%emt 00:00:36]}
Qe5 {[%clk 00:11:51]} {[%emt 00:00:37]} 29. Qc1 {[%clk 00:09:55]} {[%emt
00:01:41]} Qb2 {[%clk 00:11:13]} {[%emt 00:01:08]} 30. Qg5 {[%clk 00:07:14]}
{[%emt 00:03:11]} Qe5 {[%clk 00:11:08]} {[%emt 00:00:35]} 31. Qc1 {[%clk
00:05:23]} {[%emt 00:02:21]} Qb2 1/2-1/2

[Event "Swedish Chess Championship 2019: Veteran-SM 65+"]
[Site "Stiga Sports Arena, Arenatorget 1, Eskilstuna, Sweden"]
[Date "2019.07.14"]
[Round "9.1"]
[White "Bellon Lopez, Juan Manuel"]
[Black "Larsson, Per-Olov"]
[Result "0-1"]
[TimeControl "90 minutes for 40 moves + 30 minutes for the rest of the game + 30 seconds per move from move one"]
[WhiteTitle "GM"]
[WhiteFideId "2200031"]
[BlackFideId "1717774"]
[WhiteElo "2343"]
[BlackElo "1954"]

1. d4 {[%clk 01:31:00]} Nf6 {[%clk 01:30:36]} {[%emt 00:00:24]} 2. Nf3 {[%clk
01:30:33]} {[%emt 00:00:57]} d5 {[%clk 01:30:19]} {[%emt 00:01:28]} 3. e3
{[%clk 01:30:50]} {[%emt 00:00:36]} c5 {[%clk 01:29:11]} {[%emt 00:00:47]} 4.
c3 {[%clk 01:31:00]} {[%emt 00:00:08]} e6 {[%clk 01:29:04]} {[%emt 00:00:37]} 5.
Nbd2 {[%clk 01:31:13]} {[%emt 00:00:16]} Nbd7 {[%clk 01:28:00]} {[%emt
00:01:34]} 6. Bd3 {[%clk 01:31:23]} {[%emt 00:00:21]} b6 {[%clk 01:27:13]}
{[%emt 00:01:17]} 7. Qa4 {[%clk 01:30:37]} {[%emt 00:01:16]} Qc7 {[%clk
01:24:50]} {[%emt 00:02:54]} 8. Ne5 {[%clk 01:30:50]} {[%emt 00:00:15]} Bd6
{[%clk 01:21:49]} {[%emt 00:03:31]} 9. f4 {[%clk 01:31:12]} {[%emt 00:00:08]}
O-O {[%clk 01:21:07]} {[%emt 00:01:12]} 10. O-O {[%clk 01:31:33]} {[%emt
00:00:10]} Bb7 {[%clk 01:18:19]} {[%emt 00:03:18]} 11. Ndf3 {[%clk 01:27:05]}
{[%emt 00:04:58]} a6 {[%clk 01:15:44]} {[%emt 00:03:06]} 12. Bd2 {[%clk
01:19:32]} {[%emt 00:08:01]} b5 {[%clk 01:12:15]} {[%emt 00:03:59]} 13. Qd1
{[%clk 01:17:58]} {[%emt 00:02:04]} Ne4 {[%clk 01:10:53]} {[%emt 00:01:53]} 14.
Ng5 {[%clk 01:13:39]} {[%emt 00:04:48]} Nxg5 {[%clk 01:00:16]} {[%emt
00:11:08]} 15. Nxd7 {[%clk 01:09:27]} {[%emt 00:04:42]} Nh3+ {[%clk 00:59:23]}
{[%emt 00:01:22]} 16. Kh1 {[%clk 01:04:22]} {[%emt 00:05:35]} Qxd7 {[%clk
00:58:09]} {[%emt 00:01:45]} 17. Qh5 {[%clk 01:04:31]} {[%emt 00:00:21]} f5
{[%clk 00:57:14]} {[%emt 00:01:25]} 18. Qxh3 {[%clk 01:04:47]} {[%emt
00:00:14]} c4 {[%clk 00:55:12]} {[%emt 00:02:32]} 19. Bc2 {[%clk 01:04:41]}
{[%emt 00:00:35]} g6 {[%clk 00:53:59]} {[%emt 00:01:43]} 20. g4 {[%clk
01:05:02]} {[%emt 00:00:10]} Rf7 {[%clk 00:53:22]} {[%emt 00:01:07]} 21. Rf3
{[%clk 01:03:39]} {[%emt 00:01:53]} Rg7 {[%clk 00:51:00]} {[%emt 00:02:51]} 22.
Rg1 {[%clk 01:04:00]} {[%emt 00:00:09]} Bc8 {[%clk 00:50:20]} {[%emt 00:01:11]}
23. Be1 {[%clk 01:00:54]} {[%emt 00:03:35]} Qf7 {[%clk 00:44:56]} {[%emt
00:05:55]} 24. gxf5 {[%clk 00:51:00]} {[%emt 00:10:25]} exf5 {[%clk 00:44:51]}
{[%emt 00:00:34]} 25. Qh6 {[%clk 00:50:48]} {[%emt 00:00:41]} Bd7 {[%clk
00:32:08]} {[%emt 00:13:14]} 26. h4 {[%clk 00:50:54]} {[%emt 00:00:24]} Be8
{[%clk 00:32:02]} {[%emt 00:00:36]} 27. h5 {[%clk 00:49:16]} {[%emt 00:02:07]}
Ra7 {[%clk 00:30:24]} {[%emt 00:02:08]} 28. Rh3 {[%clk 00:48:21]} {[%emt
00:01:25]} Qe6 {[%clk 00:28:18]} {[%emt 00:02:37]} 29. Bf2 {[%clk 00:29:50]}
{[%emt 00:19:02]} Bf8 {[%clk 00:23:37]} {[%emt 00:05:10]} 30. Qg5 {[%clk
00:25:53]} {[%emt 00:04:26]} Be7 {[%clk 00:22:00]} {[%emt 00:02:07]} 31. Qg2
{[%clk 00:25:57]} {[%emt 00:00:26]} Bf6 {[%clk 00:21:44]} {[%emt 00:00:47]} 32.
Qh2 {[%clk 00:22:02]} {[%emt 00:04:25]} a5 {[%clk 00:19:25]} {[%emt 00:02:48]}
33. hxg6 {[%clk 00:20:26]} {[%emt 00:02:06]} Bxg6 {[%clk 00:18:25]} {[%emt
00:01:31]} 34. e4 {[%clk 00:18:15]} {[%emt 00:02:40]} fxe4 {[%clk 00:09:37]}
{[%emt 00:09:19]} 35. f5 {[%clk 00:16:24]} {[%emt 00:02:21]} Bxf5 {[%clk
00:09:34]} {[%emt 00:00:33]} 36. Rh6 {[%clk 00:11:57]} {[%emt 00:04:56]} Rxg1+
{[%clk 00:07:10]} {[%emt 00:02:55]} 37. Bxg1 {[%clk 00:11:47]} {[%emt
00:00:40]} Rb7 {[%clk 00:04:01]} {[%emt 00:03:39]} 38. Qf4 {[%clk 00:09:56]}
{[%emt 00:02:21]} Bg6 {[%clk 00:03:50]} {[%emt 00:00:40]} 39. Be3 {[%clk
00:09:13]} {[%emt 00:01:13]} Bg7 {[%clk 00:03:35]} {[%emt 00:00:45]} 40. Rh2
{[%clk 00:07:18]} {[%emt 00:02:25]} Qf6 {[%clk 00:02:13]} {[%emt 00:01:53]} 41.
Qg4 {[%clk 00:05:11]} {[%emt 00:02:36]} Qf1+ {[%clk 00:26:04]} {[%emt
00:06:40]} 42. Bg1 {[%clk 00:35:29]} {[%emt 00:00:12]} Qf3+ {[%clk 00:26:09]}
{[%emt 00:00:24]} 43. Qxf3 {[%clk 00:35:34]} {[%emt 00:00:26]} exf3 {[%clk
00:26:31]} {[%emt 00:00:07]} 44. Bxg6 {[%clk 00:33:16]} {[%emt 00:02:49]} hxg6
{[%clk 00:26:52]} {[%emt 00:00:09]} 45. Rh3 {[%clk 00:31:46]} {[%emt 00:01:58]}
Rf7 {[%clk 00:24:37]} {[%emt 00:02:46]} 46. Bf2 {[%clk 00:32:15]} {[%emt
00:00:02]} g5 {[%clk 00:24:14]} {[%emt 00:00:53]} 47. Kh2 {[%clk 00:29:39]}
{[%emt 00:03:06]} Rf5 {[%clk 00:22:27]} {[%emt 00:02:17]} 48. Kg3 {[%clk
00:29:09]} {[%emt 00:00:59]} Kf7 {[%clk 00:22:40]} {[%emt 00:00:17]} 49. Kg4
{[%clk 00:28:26]} {[%emt 00:01:12]} Kg6 {[%clk 00:22:34]} {[%emt 00:00:37]} 50.
Rh1 {[%clk 00:27:06]} {[%emt 00:01:50]} Rf4+ {[%clk 00:17:06]} {[%emt
00:05:58]} 51. Kg3 {[%clk 00:25:59]} {[%emt 00:01:37]} b4 {[%clk 00:14:18]}
{[%emt 00:03:19]} 52. Be3 {[%clk 00:25:43]} {[%emt 00:00:44]} Rf5 {[%clk
00:14:00]} {[%emt 00:00:50]} 53. a4 {[%clk 00:23:44]} {[%emt 00:02:29]} Bf8
{[%clk 00:12:55]} {[%emt 00:01:35]} 54. Kf2 {[%clk 00:16:28]} {[%emt 00:07:46]}
Bd6 {[%clk 00:12:41]} {[%emt 00:00:43]} 55. cxb4 {[%clk 00:15:16]} {[%emt
00:01:44]} Bxb4 {[%clk 00:12:03]} {[%emt 00:01:08]} 56. Rh8 {[%clk 00:15:20]}
{[%emt 00:00:25]} Rf8 {[%clk 00:12:18]} {[%emt 00:00:14]} 57. Rh1 {[%clk
00:06:40]} {[%emt 00:09:10]} Bd6 {[%clk 00:12:18]} {[%emt 00:00:31]} 58. Bd2
{[%clk 00:06:44]} {[%emt 00:00:26]} Bf4 {[%clk 00:10:09]} {[%emt 00:02:38]} 59.
Bxa5 {[%clk 00:07:09]} {[%emt 00:00:06]} g4 {[%clk 00:10:16]} {[%emt 00:00:23]}
60. Be1 {[%clk 00:06:08]} {[%emt 00:01:31]} Bb8 {[%clk 00:09:39]} {[%emt
00:01:07]} 61. Rg1 {[%clk 00:04:57]} {[%emt 00:01:41]} g3+ {[%clk 00:08:49]}
{[%emt 00:01:20]} 62. Rxg3+ {[%clk 00:05:19]} {[%emt 00:00:08]} Bxg3+ {[%clk
00:09:11]} {[%emt 00:00:07]} 63. Kxg3 {[%clk 00:05:48]} {[%emt 00:00:01]} f2
{[%clk 00:07:03]} {[%emt 00:02:39]} 64. Bxf2 {[%clk 00:06:18]} {[%emt
00:00:01]} Rb8 {[%clk 00:07:25]} {[%emt 00:00:06]} 65. Kf4 {[%clk 00:06:22]}
{[%emt 00:00:26]} Kf6 {[%clk 00:07:28]} {[%emt 00:00:28]} 66. Be1 {[%clk
00:05:46]} {[%emt 00:01:05]} Rxb2 {[%clk 00:07:44]} {[%emt 00:00:14]} 67. a5
{[%clk 00:06:15]} {[%emt 00:00:02]} Ra2 {[%clk 00:07:24]} {[%emt 00:00:49]} 68.
Bb4 {[%clk 00:03:56]} {[%emt 00:02:49]} Ke6 {[%clk 00:07:29]} {[%emt 00:00:25]}
69. Be1 {[%clk 00:04:07]} {[%emt 00:00:19]} Kd6 {[%clk 00:07:33]} {[%emt
00:00:27]} 70. Bb4+ {[%clk 00:04:04]} {[%emt 00:00:33]} Kc6 {[%clk 00:07:55]}
{[%emt 00:00:07]} 71. Bc3 {[%clk 00:04:18]} {[%emt 00:00:16]} Re2 {[%clk
00:07:31]} {[%emt 00:00:54]} 72. Kf3 {[%clk 00:03:10]} {[%emt 00:01:39]} Re8
{[%clk 00:07:30]} {[%emt 00:00:30]} 73. Kf4 {[%clk 00:03:12]} {[%emt 00:00:29]}
Kb5 {[%clk 00:07:28]} {[%emt 00:00:32]} 0-1